fUSD/lending_fUSD_20240227
["ID","MTS","AMOUNT","RATE_DAILY","PERIOD"]
[315448273,1709040641143,-1402.99,0.00022739,2]
[315448275,1709040641154,-500.0,0.00022739,2]
[315448276,1709040641165,-1402.99,0.00022739,2]
[315448278,1709040641175,-500.0,0.00022739,2]
[315448280,1709040641186,-636.68160979,0.00022739,2]
[315448282,1709040641196,-500.0,0.00022739,2]
[315448284,1709040641206,-500.0,0.00022739,2]
[315448285,1709040641216,-500.0,0.00022739,2]
[315448287,1709040641226,-500.0,0.00022739,2]
[315448289,1709040641236,-500.0,0.00022739,2]
[315448291,1709040641245,-500.0,0.00022739,2]
[315448292,1709040641255,-500.0,0.00022739,2]
[315448294,1709040641264,-500.0,0.00022739,2]
[315448296,1709040641274,-500.0,0.00022739,2]
[315448298,1709040641283,-520.1154529,0.00022739,2]
[315448300,1709040641293,-705.0,0.00022739,2]
[315448302,1709040641303,-705.0,0.00022739,2]
[315448303,1709040641312,-500.0,0.00022739,2]
[315448305,1709040641322,-155.04951354,0.00022739,2]
[315448307,1709040641331,-500.0,0.00022739,2]
[315448309,1709040641341,-500.0,0.00022739,2]
[315448311,1709040641351,-500.0,0.00022739,2]
[315448313,1709040641360,-305.93,0.00022739,2]
[315448314,1709040641370,-500.0,0.00022739,2]
[315448316,1709040641380,-500.0,0.00022739,2]
[315448318,1709040641390,-505.71849725,0.00022739,2]
[315448320,1709040641400,-500.0,0.00022739,2]
[315448322,1709040641409,-565.24,0.00022739,2]
[315448324,1709040641418,-500.0,0.00022739,2]
[315448326,1709040641427,-500.0,0.00022739,2]
[315448328,1709040641437,-500.0,0.00022739,2]
[315448329,1709040641446,-600.3,0.00022739,2]
[315448331,1709040641455,-600.3,0.00022739,2]
[315448333,1709040641465,-500.0,0.00022739,2]
[315448335,1709040641474,-500.0,0.00022739,2]
[315448337,1709040641483,-500.0,0.00022739,2]
[315448339,1709040641493,-500.0,0.00022739,2]
[315448341,1709040641503,-500.0,0.00022739,2]
[315448343,1709040641512,-500.0,0.00022739,2]
[315448344,1709040641522,-500.0,0.00022739,2]
[315448346,1709040641531,-500.0,0.00022739,2]
[315448348,1709040641541,-500.0,0.00022739,2]
[315448350,1709040641550,-500.0,0.00022739,2]
[315448352,1709040641560,-500.0,0.00022739,2]
[315448354,1709040641570,-500.0,0.00022739,2]
[315448356,1709040641580,-500.0,0.00022739,2]
[315448358,1709040641592,-500.0,0.00022739,2]
[315448359,1709040641601,-155.2,0.0002274,2]
[315448361,1709040641611,-155.09,0.0002274,2]
[315448364,1709040641621,-160.22,0.00022795,2]
[315448366,1709040641633,-153.05144852,0.00022797,2]
[315448367,1709040641644,-259.91802584,0.00022798,2]
[315448369,1709040641653,-539.63335447,0.00022798,2]
[315448371,1709040641665,-4432.62425,0.000228,2]
[315448373,1709040641675,-204.0,0.00022812,2]
[315448375,1709040641685,-222.12452327,0.00022819,2]
[315448377,1709040641695,-1334.85,0.00022826,2]
[315448379,1709040641705,-844.73,0.00022826,2]
[315448381,1709040641715,-500.0,0.00022826,2]
[315448382,1709040641725,-1259.03,0.00022826,2]
[315448384,1709040641734,-500.0,0.00022826,2]
[315448386,1709040641744,-500.0,0.00022826,2]
[315448388,1709040641754,-500.0,0.00022826,2]
[315448390,1709040641764,-626.15,0.00022826,2]
[315448393,1709040641773,-500.0,0.00022826,2]
[315448396,1709040641783,-500.0,0.00022826,2]
[315448399,1709040641793,-982.52,0.00022826,2]
[315448402,1709040641803,-500.0,0.00022826,2]
[315448404,1709040641813,-500.0,0.00022826,2]
[315448405,1709040641822,-500.0,0.00022826,2]
[315448407,1709040641832,-500.0,0.00022826,2]
[315448409,1709040641842,-963.78,0.00022826,2]
[315448411,1709040641852,-500.0,0.00022826,2]
[315448413,1709040641862,-1474.21,0.00022826,2]
[315448415,1709040641872,-1872.26,0.00022826,2]
[315448417,1709040641882,-5264.36,0.00022826,2]
[315448419,1709040641894,-500.0,0.00022826,2]
[315448420,1709040641904,-236.14,0.00022826,2]
[315448422,1709040641921,-500.0,0.00022826,2]
[315448424,1709040641932,-1402.99,0.00022826,2]
[315448426,1709040641943,-500.0,0.00022827,2]
[315448428,1709040641954,-500.0,0.00022827,2]
[315448430,1709040641966,-500.0,0.00022827,2]
[315448432,1709040641976,-174.390067,0.00022869,2]
[315448434,1709040641987,-500.0,0.00022876,2]
[315448435,1709040641999,-500.0,0.00022876,2]
[315448436,1709040642010,-944.63,0.00022876,2]
[315448437,1709040642021,-555.22,0.00022876,2]
[315448438,1709040642032,-500.0,0.00022876,2]
[315448439,1709040642043,-500.0,0.00022876,2]
[315448440,1709040642054,-552.22,0.00022876,2]
[315448441,1709040642066,-268.46,0.00022876,2]
[315448442,1709040642076,-557.03,0.00022876,2]
[315448443,1709040642088,-535.25,0.00022876,2]
[315448444,1709040642098,-500.0,0.00022876,2]
[315448445,1709040642113,-500.0,0.00022876,2]
[315448446,1709040642123,-500.0,0.00022876,2]
[315448448,1709040642133,-606.5,0.00022876,2]
[315448450,1709040642143,-1182.69,0.00022876,2]
[315448452,1709040642154,-616.22,0.00022876,2]
[315448454,1709040642167,-500.0,0.00022876,2]
[315448456,1709040642177,-638.9,0.00022876,2]
[315448458,1709040642188,-500.0,0.00022876,2]
[315448460,1709040642198,-500.0,0.00022876,2]
[315448462,1709040642210,-500.0,0.00022876,2]
[315448464,1709040642219,-500.0,0.00022876,2]
[315448466,1709040642230,-500.0,0.00022876,2]
[315448468,1709040642240,-500.0,0.00022876,2]
[315448470,1709040642250,-500.0,0.00022876,2]
[315448472,1709040642259,-500.0,0.00022876,2]
[315448475,1709040642269,-500.0,0.00022876,2]
[315448477,1709040642279,-260.0,0.00022876,2]
[315448479,1709040642289,-500.0,0.00022876,2]
[315448481,1709040642299,-1371.68,0.00022876,2]
[315448483,1709040642309,-705.0,0.00022876,2]
[315448485,1709040642319,-600.3,0.00022876,2]
[315448487,1709040642329,-500.0,0.00022877,2]
[315448489,1709040642339,-548.52992008,0.00022877,2]
[315448491,1709040642348,-500.0,0.00022877,2]
[315448493,1709040642358,-500.0,0.00022877,2]
[315448495,1709040642368,-500.0,0.00022877,2]
[315448497,1709040642378,-297.69998084,0.00022877,2]
[315448499,1709040642389,-500.0,0.00022877,2]
[315448501,1709040642400,-500.0,0.00022877,2]
[315448503,1709040642410,-500.0,0.00022877,2]
[315448505,1709040642420,-500.0,0.00022877,2]
[315448507,1709040642429,-500.0,0.00022877,2]
[315448509,1709040642439,-500.0,0.00022877,2]
[315448512,1709040642449,-560.32,0.00022877,2]
[315448514,1709040642459,-500.0,0.00022877,2]
[315448516,1709040642469,-500.0,0.00022877,2]
[315448518,1709040642478,-500.0,0.00022877,2]
[315448520,1709040642488,-590.3,0.00022877,2]
[315448522,1709040642498,-444.58643263,0.00022877,2]
[315448524,1709040642508,-500.0,0.00022877,2]
[315448526,1709040642521,-500.0,0.00022877,2]
[315448528,1709040642531,-500.0,0.00022877,2]
[315448530,1709040642541,-500.0,0.00022877,2]
[315448532,1709040642550,-500.0,0.00022877,2]
[315448534,1709040642560,-535.59,0.00022877,2]
[315448536,1709040642571,-500.0,0.00022877,2]
[315448538,1709040642581,-500.0,0.00022877,2]
[315448541,1709040642591,-500.0,0.00022877,2]
[315448543,1709040642600,-500.0,0.00022877,2]
[315448545,1709040642610,-500.0,0.00022877,2]
[315448547,1709040642620,-500.0,0.00022877,2]
[315448549,1709040642630,-500.0,0.00022877,2]
[315448551,1709040642640,-500.0,0.00022877,2]
[315448553,1709040642650,-500.0,0.00022877,2]
[315448555,1709040642660,-500.0,0.00022877,2]
[315448557,1709040642671,-500.0,0.00022877,2]
[315448559,1709040642682,-500.0,0.00022877,2]
[315448561,1709040642693,-500.0,0.00022877,2]
[315448563,1709040642702,-500.0,0.00022877,2]
[315448565,1709040642712,-500.0,0.00022877,2]
[315448567,1709040642722,-500.0,0.00022877,2]
[315448569,1709040642732,-500.0,0.00022877,2]
[315448571,1709040642742,-500.0,0.00022877,2]
[315448573,1709040642752,-500.0,0.00022877,2]
[315448576,1709040642762,-573.19,0.00022877,2]
[315448578,1709040642772,-625.4,0.00022877,2]
[315448580,1709040642782,-562.98,0.00022877,2]
[315448582,1709040642792,-500.0,0.00022877,2]
[315448584,1709040642801,-150.0,0.00022877,2]
[315448586,1709040642812,-500.0,0.00022877,2]
[315448588,1709040642822,-500.0,0.00022877,2]
[315448608,1709040642984,-500.0,0.00022877,2]
[315448610,1709040642994,-500.0,0.00022877,2]
[315448612,1709040643004,-548.65602131,0.00022877,2]
[315448614,1709040643013,-500.0,0.00022877,2]
[315448617,1709040643022,-500.0,0.00022877,2]
[315448619,1709040643032,-500.0,0.00022877,2]
[315448621,1709040643041,-562.09,0.00022877,2]
[315448623,1709040643050,-500.0,0.00022877,2]
[315448625,1709040643059,-500.0,0.00022877,2]
[315448627,1709040643070,-500.0,0.00022877,2]
[315448629,1709040643079,-500.0,0.00022877,2]
[315448632,1709040643089,-666.4,0.00022877,2]
[315448634,1709040643098,-500.0,0.00022877,2]
[315448637,1709040643108,-500.0,0.00022877,2]
[315448640,1709040643117,-592.81,0.00022877,2]
[315448642,1709040643126,-500.0,0.00022877,2]
[315448644,1709040643138,-500.0,0.00022877,2]
[315448646,1709040643147,-500.0,0.00022877,2]
[315448648,1709040643156,-500.0,0.00022877,2]
[315448650,1709040643166,-500.0,0.00022877,2]
[315448651,1709040643177,-500.0,0.00022877,2]
[315448654,1709040643187,-500.0,0.00022877,2]
[315448656,1709040643196,-500.0,0.00022877,2]
[315448659,1709040643206,-500.0,0.00022877,2]
[315448662,1709040643217,-412.21357364,0.00022877,2]
[315448666,1709040643226,-500.0,0.00022877,2]
[315448669,1709040643236,-500.0,0.00022877,2]
[315448673,1709040643245,-500.0,0.00022877,2]
[315448674,1709040643254,-500.0,0.00022877,2]
[315448676,1709040643263,-500.0,0.00022877,2]
[315448679,1709040643272,-500.0,0.00022877,2]
[315448680,1709040643281,-500.0,0.00022877,2]
[315448683,1709040643290,-500.0,0.00022877,2]
[315448685,1709040643300,-500.0,0.00022877,2]
[315448688,1709040643310,-500.0,0.00022877,2]
[315448690,1709040643319,-500.0,0.00022877,2]
[315448692,1709040643328,-500.0,0.00022877,2]
[315448694,1709040643337,-500.0,0.00022877,2]
[315448696,1709040643347,-500.0,0.00022877,2]
[315448698,1709040643355,-500.0,0.00022877,2]
[315448700,1709040643364,-500.0,0.00022877,2]
[315448701,1709040643373,-500.0,0.00022877,2]
[315448703,1709040643382,-500.0,0.00022877,2]
[315448706,1709040643392,-170.92541587,0.00022877,2]
[315448707,1709040643401,-556.97,0.00022896,2]
[315448710,1709040643412,-303.26882664,0.00022896,2]
[315448712,1709040643421,-500.0,0.00022896,2]
[315448713,1709040643430,-500.0,0.00022896,2]
[315448715,1709040643439,-500.0,0.00022896,2]
[315448717,1709040643447,-500.0,0.00022896,2]
[315448720,1709040643457,-500.0,0.00022896,2]
[315448722,1709040643467,-500.0,0.00022896,2]
[315448724,1709040643476,-725.34,0.00022896,2]
[315448725,1709040643485,-1792.39,0.00022896,2]
[315448727,1709040643494,-500.0,0.00022896,2]
[315448729,1709040643503,-500.0,0.00022896,2]
[315448731,1709040643513,-500.0,0.00022896,2]
[315448733,1709040643522,-500.0,0.00022896,2]
[315448735,1709040643531,-500.0,0.00022896,2]
[315448737,1709040643540,-500.0,0.00022896,2]
[315448739,1709040643549,-337.29,0.00022896,2]
[315448741,1709040643559,-500.0,0.00022896,2]
[315448743,1709040643568,-500.0,0.00022896,2]
[315448745,1709040643577,-500.0,0.00022896,2]
[315448748,1709040643587,-500.0,0.00022896,2]
[315448750,1709040643596,-556.12705744,0.00022896,2]
[315448751,1709040643605,-265.38365842,0.00022896,2]
[315448753,1709040643615,-500.0,0.00022896,2]
[315448755,1709040643624,-500.0,0.00022896,2]
[315448758,1709040643633,-500.0,0.00022896,2]
[315448760,1709040643642,-1310.51361221,0.00022897,2]
[315448761,1709040643651,-500.0,0.00022897,2]
[315448764,1709040643662,-500.0,0.00022897,2]
[315448765,1709040643671,-500.0,0.00022897,2]
[315448768,1709040643681,-1334.85,0.00022897,2]
[315448770,1709040643690,-500.0,0.00022897,2]
[315448772,1709040643700,-500.0,0.00022897,2]
[315448773,1709040643709,-500.0,0.00022897,2]
[315448776,1709040643721,-500.0,0.00022897,2]
[315448778,1709040643730,-844.73,0.00022897,2]
[315448780,1709040643739,-944.63,0.00022897,2]
[315448782,1709040643748,-944.63,0.00022897,2]
[315448784,1709040643757,-500.0,0.00022897,2]
[315448786,1709040643766,-555.22,0.00022897,2]
[315448788,1709040643775,-555.22,0.00022897,2]
[315448790,1709040643784,-500.0,0.00022897,2]
[315448792,1709040643793,-500.0,0.00022897,2]
[315448794,1709040643802,-500.0,0.00022897,2]
[315448796,1709040643811,-500.0,0.00022897,2]
[315448798,1709040643820,-552.22,0.00022897,2]
[315448800,1709040643829,-552.22,0.00022897,2]
[315448802,1709040643838,-1259.03,0.00022897,2]
[315448804,1709040643848,-500.0,0.00022897,2]
[315448806,1709040643857,-500.0,0.00022897,2]
[315448808,1709040643866,-500.0,0.00022897,2]
[315448810,1709040643875,-557.03,0.00022897,2]
[315448812,1709040643883,-557.03,0.00022897,2]
[315448814,1709040643892,-626.15,0.00022897,2]
[315448816,1709040643901,-535.25,0.00022897,2]
[315448818,1709040643911,-535.25,0.00022897,2]
[315448820,1709040643920,-500.0,0.00022897,2]
[315448822,1709040643929,-500.0,0.00022897,2]
[315448823,1709040643938,-982.52,0.00022897,2]
[315448825,1709040643947,-500.0,0.00022897,2]
[315448827,1709040643956,-500.0,0.00022897,2]
[315448829,1709040643965,-500.0,0.00022897,2]
[315448831,1709040643974,-500.0,0.00022897,2]
[315448834,1709040643983,-500.0,0.00022897,2]
[315448836,1709040643992,-500.0,0.00022897,2]
[315448838,1709040644001,-500.0,0.00022897,2]
[315448840,1709040644010,-509.4,0.00022897,2]
[315448842,1709040644019,-1182.69,0.00022897,2]
[315448844,1709040644029,-1182.69,0.00022897,2]
[315448846,1709040644038,-500.0,0.00022897,2]
[315448848,1709040644048,-500.0,0.00022897,2]
[315448850,1709040644056,-500.0,0.00022897,2]
[315448852,1709040644065,-500.0,0.00022897,2]
[315448854,1709040644074,-556.97,0.00022897,2]
[315448855,1709040644083,-556.97,0.00022897,2]
[315448857,1709040644092,-963.78,0.00022897,2]
[315448859,1709040644101,-500.0,0.00022897,2]
[315448861,1709040644113,-500.0,0.00022897,2]
[315448863,1709040644122,-500.0,0.00022897,2]
[315448865,1709040644134,-295.83995936,0.00022897,2]
[315448897,1709040644433,-204.16004064,0.00022897,2]
[315448899,1709040644443,-500.0,0.00022897,2]
[315448901,1709040644452,-41.59370675,0.00022897,2]
[315449058,1709040645984,4563.18882862,0.0002,3]
[315449063,1709040646007,-288.43834255,0.00022739,2]
[315449071,1709040646038,4563.18882862,0.0002,3]
[315449074,1709040646052,-231.68165745,0.00022739,2]
[315449078,1709040646062,-500.0,0.00022739,2]
[315449082,1709040646071,-500.0,0.00022739,2]
[315449085,1709040646080,-518.27310032,0.00022739,2]
[315449090,1709040646090,-500.0,0.00022739,2]
[315449094,1709040646100,-500.0,0.00022739,2]
[315449098,1709040646111,-204.0,0.00022812,2]
[315449102,1709040646120,-500.0,0.00022896,2]
[315449106,1709040646132,-1432.61629325,0.00022897,2]
[315449110,1709040646141,-638.9,0.00022897,2]
[315449114,1709040646150,-638.9,0.00022897,2]
[315449118,1709040646160,-621.26,0.00022897,2]
[315449122,1709040646172,-500.0,0.00022897,2]
[315449126,1709040646182,-500.0,0.00022897,2]
[315449129,1709040646191,-176.61515317,0.00022897,2]
[315449133,1709040646204,-1695.64484683,0.00022897,2]
[315449137,1709040646215,-500.0,0.00022897,2]
[315449141,1709040646224,-500.0,0.00022897,2]
[315449145,1709040646233,-725.34,0.00022897,2]
[315449149,1709040646243,-725.34,0.00022897,2]
[315449152,1709040646252,-648.53772077,0.00022897,2]
[315449156,1709040646262,-500.0,0.00022897,2]
[315449160,1709040646272,-500.0,0.00022897,2]
[315449164,1709040646282,-1792.39,0.00022897,2]
[315449168,1709040646292,-1792.39,0.00022897,2]
[315449171,1709040646302,-500.0,0.00022897,2]
[315449175,1709040646313,-500.0,0.00022897,2]
[315449178,1709040646323,-500.0,0.00022897,2]
[315449181,1709040646334,-500.0,0.00022897,2]
[315449184,1709040646344,-500.0,0.00022897,2]
[315449186,1709040646354,-500.0,0.00022897,2]
[315449188,1709040646364,-500.0,0.00022897,2]
[315449190,1709040646374,-500.0,0.00022897,2]
[315449192,1709040646383,-5264.36,0.00022897,2]
[315449194,1709040646393,-316.62999999,0.00022897,2]
[315449196,1709040646402,-500.0,0.00022897,2]
[315449198,1709040646414,-410.82,0.00022897,2]
[315449200,1709040646424,-229.31025086,0.00022897,2]
[315449202,1709040646434,-500.0,0.00022897,2]
[315449204,1709040646444,-500.0,0.00022897,2]
[315449206,1709040646454,-500.0,0.00022897,2]
[315449208,1709040646463,-442.38488328,0.00022897,2]
[315449215,1709040646524,4563.18882862,0.0002,3]
[315449220,1709040646563,4563.18882862,0.0002,3]
[315449225,1709040646604,161.07,0.00021947,2]
[315449239,1709040646714,4563.18882862,0.0002,3]
[315449242,1709040646746,161.07,0.00022191,2]
[315449249,1709040646804,161.07,0.00022435,2]
[315449254,1709040646840,4563.18882862,0.0002,3]
[315449258,1709040646933,4563.18882862,0.0002,3]
[315449263,1709040647003,4563.18882862,0.0002,3]
[315449267,1709040647046,4563.18882862,0.0002,3]
[315449268,1709040647099,2580.78998005,0.0002,3]
[315449269,1709040647285,-361.91155,0.0002,3]
[315449271,1709040647298,-1549.82825487,0.0002,3]
[315449273,1709040647310,-70.6580437,0.0002,3]
[315449275,1709040647320,-161.07,0.00022679,2]
[315449277,1709040647329,-25.87038466,0.00022897,2]
[315449279,1709040647338,-281.26079406,0.00022897,2]
[315449282,1709040647358,-218.73920594,0.00022897,2]
[315449284,1709040647367,-500.0,0.00022897,2]
[315449286,1709040647376,-500.0,0.00022897,2]
[315449288,1709040647386,-25.94527076,0.00022897,2]
[315449296,1709040647498,-474.05472924,0.00022897,2]
[315449297,1709040647510,-186.21845832,0.00022897,2]
[315449298,1709040647522,-313.78154168,0.00022897,2]
[315449299,1709040647532,-500.0,0.00022897,2]
[315449300,1709040647541,-170.04061919,0.00022897,2]
[315449301,1709040647554,-1201.63938081,0.00022897,2]
[315449302,1709040647563,-144.67432685,0.00022897,2]
[315449303,1709040647575,-355.32567315,0.00022897,2]
[315449304,1709040647584,-154.41293376,0.00022897,2]
[315449306,1709040647595,-649.02,0.00022897,2]
[315449307,1709040647611,-568.24706624,0.00022897,2]
[315449308,1709040647620,-500.0,0.00022897,2]
[315449309,1709040647630,-72.78793376,0.00022897,2]
[315449310,1709040647645,-427.21206624,0.00022897,2]
[315449311,1709040647655,-377.71,0.00022897,2]
[315449313,1709040647666,-500.0,0.00022897,2]
[315449314,1709040647675,-500.0,0.00022897,2]
[315449315,1709040647684,-500.0,0.00022897,2]
[315449316,1709040647693,-500.0,0.00022897,2]
[315449317,1709040647702,-385.41497128,0.00022897,2]
[315449318,1709040647711,-500.0,0.00022897,2]
[315449319,1709040647721,-34.66296148,0.00022897,2]
[315449324,1709040647875,-939.12277419,0.00021982,2]
[315449326,1709040647885,-185.36359941,0.00022639,2]
[315449327,1709040647894,-500.0,0.00022739,2]
[315449330,1709040647904,-338.7986264,0.00022739,2]
[315449333,1709040647924,-161.2013736,0.00022739,2]
[315449335,1709040647933,-500.0,0.00022896,2]
[315449337,1709040647942,-465.33703852,0.00022897,2]
[315449338,1709040647952,-1402.99,0.00022897,2]
[315449339,1709040647963,-705.0,0.00022897,2]
[315449340,1709040647972,-705.0,0.00022897,2]
[315449341,1709040647984,-510.95287252,0.00022897,2]
[315449343,1709040647994,-600.3,0.00022897,2]
[315449345,1709040648003,-600.3,0.00022897,2]
[315449346,1709040648012,-500.0,0.00022897,2]
[315449348,1709040648022,-500.0,0.00022897,2]
[315449349,1709040648031,-500.0,0.00022897,2]
[315449350,1709040648042,-500.0,0.00022897,2]
[315449351,1709040648051,-500.0,0.00022897,2]
[315449352,1709040648061,-500.0,0.00022897,2]
[315449353,1709040648071,-500.0,0.00022897,2]
[315449354,1709040648080,-500.0,0.00022897,2]
[315449355,1709040648089,-108913.68664834,0.00022898,4]
[315449356,1709040648101,-65153.0567757,0.00022898,4]
[315449357,1709040648118,-34953.49547824,0.00022898,4]
[315449358,1709040648221,-158153.79259567,0.00022898,4]
[315449359,1709040648231,-500.0,0.00022898,2]
[315449360,1709040648241,-500.0,0.00022898,2]
[315449361,1709040648251,-500.0,0.00022898,2]
[315449362,1709040648261,-500.0,0.00022898,2]
[315449363,1709040648270,-500.0,0.00022898,2]
[315449364,1709040648280,-591.87,0.00022898,2]
[315449365,1709040648290,-500.0,0.00022898,2]
[315449366,1709040648300,-500.0,0.00022898,2]
[315449367,1709040648310,-500.0,0.00022898,2]
[315449368,1709040648321,-500.0,0.00022898,2]
[315449369,1709040648331,-500.0,0.00022898,2]
[315449370,1709040648340,-500.0,0.00022898,2]
[315449371,1709040648351,-500.0,0.00022898,2]
[315449372,1709040648361,-529.76548357,0.00022898,2]
[315449373,1709040648370,-500.0,0.00022898,2]
[315449374,1709040648381,-500.0,0.00022898,2]
[315449375,1709040648390,-500.0,0.00022898,2]
[315449376,1709040648400,-500.0,0.00022898,2]
[315449377,1709040648409,-500.0,0.00022898,2]
[315449378,1709040648422,-500.0,0.00022898,2]
[315449379,1709040648432,-500.0,0.00022898,2]
[315449380,1709040648441,-500.0,0.00022898,2]
[315449381,1709040648451,-500.0,0.00022898,2]
[315449382,1709040648460,-500.0,0.00022898,2]
[315449383,1709040648470,-500.0,0.00022898,2]
[315449384,1709040648480,-380.0,0.00022898,2]
[315449385,1709040648489,-500.0,0.00022898,2]
[315449386,1709040648499,-500.0,0.00022898,2]
[315449387,1709040648509,-500.0,0.00022898,2]
[315449388,1709040648519,-500.0,0.00022898,2]
[315449389,1709040648528,-402.97339218,0.00022898,2]
[315449390,1709040648537,-500.0,0.00022898,2]
[315449391,1709040648547,-500.0,0.00022898,2]
[315449392,1709040648556,-500.0,0.00022898,2]
[315449393,1709040648565,-500.0,0.00022898,2]
[315449394,1709040648576,-500.0,0.00022898,2]
[315449395,1709040648585,-500.0,0.00022898,2]
[315449396,1709040648595,-500.0,0.00022898,2]
[315449397,1709040648605,-500.0,0.00022898,2]
[315449398,1709040648614,-500.0,0.00022898,2]
[315449399,1709040648624,-500.0,0.00022898,2]
[315449400,1709040648633,-500.0,0.00022898,2]
[315449401,1709040648642,-500.0,0.00022898,2]
[315449402,1709040648651,-500.0,0.00022898,2]
[315449403,1709040648660,-500.0,0.00022898,2]
[315449404,1709040648672,-500.0,0.00022898,2]
[315449405,1709040648681,-243.01835499,0.00022898,2]
[315449406,1709040648691,-560.32,0.00022898,2]
[315449407,1709040648700,-500.0,0.00022898,2]
[315449408,1709040648709,-560.32,0.00022898,2]
[315449409,1709040648719,-305.03089454,0.00022898,2]
[315449410,1709040648729,-560.32,0.00022898,2]
[315449411,1709040648739,-560.32,0.00022898,2]
[315449412,1709040648749,-500.0,0.00022898,2]
[315449413,1709040648759,-238.53955532,0.00022898,2]
[315449414,1709040648768,-500.0,0.00022898,2]
[315449415,1709040648777,-500.0,0.00022898,2]
[315449416,1709040648787,-500.0,0.00022898,2]
[315449417,1709040648795,-500.0,0.00022898,2]
[315449418,1709040648804,-590.3,0.00022898,2]
[315449419,1709040648813,-590.3,0.00022898,2]
[315449420,1709040648823,-590.3,0.00022898,2]
[315449421,1709040648832,-590.3,0.00022898,2]
[315449422,1709040648841,-500.0,0.00022898,2]
[315449423,1709040648850,-500.0,0.00022898,2]
[315449424,1709040648859,-500.0,0.00022898,2]
[315449425,1709040648869,-500.0,0.00022898,2]
[315449426,1709040648879,-503.31844989,0.00022898,2]
[315449427,1709040648888,-500.0,0.00022898,2]
[315449428,1709040648897,-500.0,0.00022898,2]
[315449429,1709040648907,-500.0,0.00022898,2]
[315449430,1709040648918,-500.0,0.00022898,2]
[315449431,1709040648927,-500.0,0.00022898,2]
[315449432,1709040648936,-500.0,0.00022898,2]
[315449433,1709040649068,-500.0,0.00022898,2]
[315449434,1709040649103,-500.0,0.00022898,2]
[315449435,1709040649113,-500.0,0.00022898,2]
[315449436,1709040649123,-291.91541609,0.00022898,2]
[315449437,1709040649134,-535.59,0.00022898,2]
[315449438,1709040649144,-535.59,0.00022898,2]
[315449439,1709040649153,-535.59,0.00022898,2]
[315449440,1709040649166,-535.59,0.00022898,2]
[315449441,1709040649177,-500.0,0.00022898,2]
[315449442,1709040649187,-500.0,0.00022898,2]
[315449443,1709040649196,-500.0,0.00022898,2]
[315449444,1709040649205,-500.0,0.00022898,2]
[315449445,1709040649214,-500.0,0.00022898,2]
[315449446,1709040649224,-500.0,0.00022898,2]
[315449447,1709040649234,-500.0,0.00022898,2]
[315449448,1709040649243,-500.0,0.00022898,2]
[315449449,1709040649253,-500.0,0.00022898,2]
[315449450,1709040649262,-500.0,0.00022898,2]
[315449451,1709040649273,-500.0,0.00022898,2]
[315449452,1709040649282,-500.0,0.00022898,2]